[Event "*** Titled Tuesday 3|2 Blitz"]
[Site "Chess.com"]
[Date "2016.02.02"]
[Round "6"]
[White "tac49"]
[Black "JusticeBot"]
[Result "1-0"]
[WhiteElo "2469"]
[BlackElo "2426"]
[TimeControl "180+2"]
[EndTime "12:19:05 PST"]
[Termination "tac49 won by resignation"]

1. e4 {[%clk 0:03:01.5]} 1... e5 {[%clk 0:03:00.9]} 2. Nf3 {[%clk 0:03:00.9]}
2... Nc6 {[%clk 0:03:02.1]} 3. Bb5 {[%clk 0:02:58.8]} 3... a6 {[%clk 0:03:02.6]}
4. Ba4 {[%clk 0:02:59.4]} 4... Nf6 {[%clk 0:03:02.6]} 5. O-O {[%clk 0:02:59.6]}
5... b5 {[%clk 0:03:04.2]} 6. Bb3 {[%clk 0:02:59.7]} 6... Bb7 {[%clk 0:03:06.1]}
7. Nc3 {[%clk 0:02:56.8]} 7... Bc5 {[%clk 0:03:04.2]} 8. Nxe5 {[%clk 0:02:49.5]}
8... Nxe5 {[%clk 0:02:53.3]} 9. d4 {[%clk 0:02:49.8]} 9... Bxd4 {[%clk
0:01:53.5]} 10. Qxd4 {[%clk 0:02:51.7]} 10... d6 {[%clk 0:01:48.5]} 11. f4
{[%clk 0:02:51.7]} 11... Nc6 {[%clk 0:01:49.7]} 12. Qd3 {[%clk 0:02:42.4]} 12...
O-O {[%clk 0:01:49.5]} 13. Bd2 {[%clk 0:02:26.6]} 13... Re8 {[%clk 0:01:50.9]}
14. Rae1 {[%clk 0:02:25.9]} 14... Na5 {[%clk 0:01:39.7]} 15. f5 {[%clk
0:01:24.1]} 15... c5 {[%clk 0:01:34.3]} 16. Bd5 {[%clk 0:01:22.8]} 16... Qb6
{[%clk 0:01:09.9]} 17. Bxb7 {[%clk 0:01:16.8]} 17... c4+ {[%clk 0:01:07.3]} 18.
Qe3 {[%clk 0:01:08.8]} 18... Qxb7 {[%clk 0:01:06.7]} 19. Qg3 {[%clk 0:01:03.5]}
19... Kh8 {[%clk 0:00:45.2]} 20. Bg5 {[%clk 0:01:01.1]} 20... Nxe4 {[%clk
0:00:39.8]} 21. Nxe4 {[%clk 0:00:58.4]} 21... Rxe4 {[%clk 0:00:41.7]} 22. f6
{[%clk 0:00:56.2]} 22... g6 {[%clk 0:00:24.7]} 23. Qxd6 {[%clk 0:00:54.4]} 23...
Rae8 {[%clk 0:00:22.4]} 24. Rxe4 {[%clk 0:00:51.6]} 24... Qxe4 {[%clk
0:00:24.3]} 25. Qxa6 {[%clk 0:00:49]} 25... Nc6 {[%clk 0:00:19.2]} 26. Qb7
{[%clk 0:00:38.1]} 26... Qd4+ {[%clk 0:00:17.1]} 27. Kh1 {[%clk 0:00:31.1]}
27... Qf2 {[%clk 0:00:15.2]} 28. Rg1 {[%clk 0:00:31.4]} 28... Ne5 {[%clk
0:00:14.1]} 29. Qxb5 {[%clk 0:00:27.6]} 29... Rd8 {[%clk 0:00:02.6]} 30. Qxe5
{[%clk 0:00:27.3]} 30... Qxc2 {[%clk 0:00:03.6]} 31. h3 {[%clk 0:00:25.4]} 31...
h5 {[%clk 0:00:03.1]} 32. Qe7 {[%clk 0:00:24.7]} 32... Qf5 {[%clk 0:00:03.1]}
33. Qxd8+ {[%clk 0:00:24.6]} 1-0

[Event "*** Titled Tuesday 3|2 Blitz"]
[Site "Chess.com"]
[Date "2016.02.02"]
[Round "6"]
[White "Spinaltap"]
[Black "jcgs1030"]
[Result "0-1"]
[WhiteElo "2374"]
[BlackElo "2230"]
[TimeControl "180+2"]
[EndTime "12:19:30 PST"]
[Termination "jcgs1030 won by resignation"]

1. d4 {[%clk 0:03:01.9]} 1... Nf6 {[%clk 0:02:49.6]} 2. c4 {[%clk 0:03:01.8]}
2... g6 {[%clk 0:02:48.5]} 3. Nf3 {[%clk 0:03:01]} 3... Bg7 {[%clk 0:02:46.8]}
4. g3 {[%clk 0:03:01.2]} 4... O-O {[%clk 0:02:46.9]} 5. Bg2 {[%clk 0:03:01.6]}
5... c5 {[%clk 0:02:48.4]} 6. O-O {[%clk 0:03:00.3]} 6... cxd4 {[%clk
0:02:35.2]} 7. Nxd4 {[%clk 0:03:00.1]} 7... d6 {[%clk 0:02:37.1]} 8. Nc3 {[%clk
0:02:59.9]} 8... Nc6 {[%clk 0:02:38.2]} 9. e3 {[%clk 0:02:51.9]} 9... Bg4 {[%clk
0:02:32.4]} 10. Qd2 {[%clk 0:02:46.8]} 10... Ne5 {[%clk 0:02:29.7]} 11. b3
{[%clk 0:02:46.4]} 11... Rb8 {[%clk 0:02:31.2]} 12. h3 {[%clk 0:02:45.2]} 12...
Bd7 {[%clk 0:02:29.9]} 13. Bb2 {[%clk 0:02:45.1]} 13... a6 {[%clk 0:02:29.5]}
14. a4 {[%clk 0:02:28.3]} 14... Qc8 {[%clk 0:02:26.4]} 15. Kh2 {[%clk
0:02:27.2]} 15... Rd8 {[%clk 0:02:27.4]} 16. Rfc1 {[%clk 0:02:21.3]} 16... Nc6
{[%clk 0:02:15]} 17. a5 {[%clk 0:02:14]} 17... e5 {[%clk 0:02:15]} 18. Nde2
{[%clk 0:02:09.3]} 18... Be6 {[%clk 0:02:09.8]} 19. Nd5 {[%clk 0:01:53.3]} 19...
Qd7 {[%clk 0:02:08.1]} 20. Nec3 {[%clk 0:01:49.4]} 20... Ne7 {[%clk 0:02:02.6]}
21. Nxf6+ {[%clk 0:01:40.7]} 21... Bxf6 {[%clk 0:02:03]} 22. Ne4 {[%clk
0:01:41.5]} 22... Bg7 {[%clk 0:02:01]} 23. Rd1 {[%clk 0:01:41.6]} 23... d5
{[%clk 0:01:58.6]} 24. Nc5 {[%clk 0:01:34.6]} 24... Qd6 {[%clk 0:01:56.8]} 25.
Nxe6 {[%clk 0:01:34.8]} 25... fxe6 {[%clk 0:01:57.7]} 26. Ba3 {[%clk 0:01:20.6]}
26... Qd7 {[%clk 0:01:58.1]} 27. Bxe7 {[%clk 0:01:21.4]} 27... Qxe7 {[%clk
0:02:00]} 28. cxd5 {[%clk 0:01:22.1]} 28... exd5 {[%clk 0:02:01.9]} 29. Bxd5+
{[%clk 0:01:21.9]} 29... Kh8 {[%clk 0:02:03.5]} 30. Qc2 {[%clk 0:01:13.6]} 30...
Rbc8 {[%clk 0:02:01.1]} 31. Qe4 {[%clk 0:01:12.2]} 31... Rc7 {[%clk 0:02:00.6]}
32. Kg2 {[%clk 0:01:08.1]} 32... Rcd7 {[%clk 0:02:00.7]} 33. Qf3 {[%clk
0:01:02.2]} 33... e4 {[%clk 0:02:00]} 34. Bxe4 {[%clk 0:01:01.3]} 34... Bxa1
{[%clk 0:01:59.6]} 35. Rxa1 {[%clk 0:01:01.9]} 35... Rd2 {[%clk 0:01:59]} 36.
Qg4 {[%clk 0:00:48.9]} 36... Re8 {[%clk 0:01:56]} 37. Ra4 {[%clk 0:00:46]} 37...
Qf7 {[%clk 0:01:50.8]} 38. Bf3 {[%clk 0:00:28.5]} 38... Qxb3 {[%clk 0:01:50.1]}
39. Re4 {[%clk 0:00:22.9]} 39... Rf8 {[%clk 0:01:49]} 40. Rf4 {[%clk 0:00:13.4]}
40... Rfd8 {[%clk 0:01:42.9]} 41. Qg5 {[%clk 0:00:11.9]} 41... Qb2 {[%clk
0:01:42.9]} 42. Be4 {[%clk 0:00:10]} 42... Qg7 {[%clk 0:01:34.4]} 43. h4 {[%clk
0:00:11.2]} 43... h6 {[%clk 0:01:34.5]} 44. Qxg6 {[%clk 0:00:09.9]} 44... Qxg6
{[%clk 0:01:35.2]} 45. Bxg6 {[%clk 0:00:11.8]} 45... R2d5 {[%clk 0:01:36.2]} 46.
Rf7 {[%clk 0:00:12.4]} 46... R8d7 {[%clk 0:01:36.8]} 47. Rxd7 {[%clk 0:00:13.3]}
47... Rxd7 {[%clk 0:01:38.7]} 48. Be4 {[%clk 0:00:14.9]} 48... Re7 {[%clk
0:01:39.3]} 49. Kf3 {[%clk 0:00:15.7]} 49... Re5 {[%clk 0:01:40.7]} 50. Bxb7
{[%clk 0:00:16.7]} 50... Rxa5 {[%clk 0:01:40.1]} 51. g4 {[%clk 0:00:18.2]} 51...
Kg7 {[%clk 0:01:41]} 52. Kf4 {[%clk 0:00:18.6]} 52... Ra2 {[%clk 0:01:41.5]} 53.
f3 {[%clk 0:00:18.7]} 53... a5 {[%clk 0:01:42.8]} 54. Bd5 {[%clk 0:00:19.3]}
54... Rb2 {[%clk 0:01:42.7]} 55. g5 {[%clk 0:00:18.7]} 55... a4 {[%clk
0:01:44.5]} 56. Ke5 {[%clk 0:00:18.1]} 56... a3 {[%clk 0:01:44]} 57. f4 {[%clk
0:00:19.6]} 57... Rb5 {[%clk 0:01:44.9]} 58. f5 {[%clk 0:00:16.9]} 58... hxg5
{[%clk 0:01:45.8]} 59. hxg5 {[%clk 0:00:18.1]} 59... a2 {[%clk 0:01:42.8]} 60.
f6+ {[%clk 0:00:19.4]} 60... Kg6 {[%clk 0:01:44]} 61. f7 {[%clk 0:00:20.6]}
61... Kg7 {[%clk 0:01:43.5]} 62. Ke6 {[%clk 0:00:20.4]} 62... a1=Q {[%clk
0:01:42.5]} 0-1

[Event "*** Titled Tuesday 3|2 Blitz"]
[Site "Chess.com"]
[Date "2016.02.02"]
[Round "6"]
[White "Hikaru"]
[Black "MITerryble"]
[Result "0-1"]
[WhiteElo "2850"]
[BlackElo "2640"]
[TimeControl "180+2"]
[EndTime "12:19:44 PST"]
[Termination "MITerryble won on time"]

1. g3 {[%clk 0:03:01.9]} 1... g6 {[%clk 0:03:00.5]} 2. Bg2 {[%clk 0:03:01.7]}
2... Bg7 {[%clk 0:03:01.8]} 3. e4 {[%clk 0:03:03.6]} 3... e5 {[%clk 0:03:00.1]}
4. Ne2 {[%clk 0:03:04.2]} 4... Nc6 {[%clk 0:02:56.1]} 5. c4 {[%clk 0:03:05]}
5... d6 {[%clk 0:02:57]} 6. Nbc3 {[%clk 0:03:05.3]} 6... Nge7 {[%clk 0:02:58.6]}
7. d3 {[%clk 0:03:06.7]} 7... O-O {[%clk 0:03:00.1]} 8. O-O {[%clk 0:03:07.9]}
8... f5 {[%clk 0:03:01.3]} 9. Nd5 {[%clk 0:03:07.1]} 9... Be6 {[%clk 0:03:00.7]}
10. Bg5 {[%clk 0:02:58.4]} 10... h6 {[%clk 0:02:59.9]} 11. exf5 {[%clk
0:02:54.8]} 11... Bxf5 {[%clk 0:02:33.5]} 12. Be3 {[%clk 0:02:34.6]} 12... Qd7
{[%clk 0:02:29.4]} 13. Nec3 {[%clk 0:02:34.2]} 13... Nxd5 {[%clk 0:02:05.7]} 14.
Nxd5 {[%clk 0:02:32]} 14... Nd4 {[%clk 0:01:59.1]} 15. Bxd4 {[%clk 0:02:16.6]}
15... exd4 {[%clk 0:01:59.4]} 16. Re1 {[%clk 0:02:17.9]} 16... Rae8 {[%clk
0:01:54.3]} 17. Qb3 {[%clk 0:02:12.4]} 17... c6 {[%clk 0:01:52.1]} 18. Nf4
{[%clk 0:02:13.7]} 18... Qf7 {[%clk 0:01:47.4]} 19. Be4 {[%clk 0:01:52.8]} 19...
g5 {[%clk 0:01:19.6]} 20. Ng2 {[%clk 0:01:19.2]} 20... Bxe4 {[%clk 0:01:17.6]}
21. dxe4 {[%clk 0:01:21.1]} 21... Qxf2+ {[%clk 0:01:17.7]} 22. Kh1 {[%clk
0:01:23]} 22... Rxe4 {[%clk 0:01:17.3]} 23. Rg1 {[%clk 0:01:24.3]} 23... Re7
{[%clk 0:00:52.7]} 24. Qd3 {[%clk 0:01:24.2]} 24... Qf5 {[%clk 0:00:44.5]} 25.
Qb3 {[%clk 0:01:15.3]} 25... Qf3 {[%clk 0:00:41.8]} 26. Qa4 {[%clk 0:01:00.7]}
26... d3 {[%clk 0:00:39.1]} 27. Qxa7 {[%clk 0:00:59.7]} 27... c5 {[%clk
0:00:39.8]} 28. Qb6 {[%clk 0:00:59.7]} 28... Be5 {[%clk 0:00:26.2]} 29. Rad1
{[%clk 0:00:57.6]} 29... h5 {[%clk 0:00:17.9]} 30. Qb3 {[%clk 0:00:58.4]} 30...
h4 {[%clk 0:00:15.5]} 31. Rxd3 {[%clk 0:00:59.3]} 31... Qe4 {[%clk 0:00:15]} 32.
Re3 {[%clk 0:00:58.5]} 32... Qc6 {[%clk 0:00:16.1]} 33. gxh4 {[%clk 0:00:57.5]}
33... gxh4 {[%clk 0:00:17.3]} 34. Qd3 {[%clk 0:00:59.1]} 34... Rg7 {[%clk
0:00:18.3]} 35. Re4 {[%clk 0:00:40]} 35... Rf2 {[%clk 0:00:17.1]} 36. Qe3 {[%clk
0:00:40]} 36... Rf6 {[%clk 0:00:09.3]} 37. h3 {[%clk 0:00:39.2]} 37... Rfg6
{[%clk 0:00:10.3]} 38. Qf3 {[%clk 0:00:36.7]} 38... Rg3 {[%clk 0:00:11.1]} 39.
Qf5 {[%clk 0:00:38.4]} 39... Qxe4 {[%clk 0:00:10.8]} 0-1

[Event "*** Titled Tuesday 3|2 Blitz"]
[Site "Chess.com"]
[Date "2016.02.02"]
[Round "6"]
[White "Dlugy"]
[Black "igorkovalenko"]
[Result "0-1"]
[WhiteElo "2567"]
[BlackElo "2560"]
[TimeControl "180+2"]
[EndTime "12:19:56 PST"]
[Termination "igorkovalenko won by resignation"]

1. d4 {[%clk 0:03:01.9]} 1... Nf6 {[%clk 0:03:00.8]} 2. Bf4 {[%clk 0:03:02.9]}
2... e6 {[%clk 0:02:55.1]} 3. e3 {[%clk 0:03:03]} 3... c5 {[%clk 0:02:56.5]} 4.
c3 {[%clk 0:03:04.2]} 4... Nc6 {[%clk 0:02:57.5]} 5. Nd2 {[%clk 0:03:03.5]} 5...
d5 {[%clk 0:02:58.8]} 6. Ngf3 {[%clk 0:03:00.2]} 6... Bd6 {[%clk 0:03:00]} 7.
Bg3 {[%clk 0:03:01.3]} 7... O-O {[%clk 0:03:00.7]} 8. Bb5 {[%clk 0:03:01.8]}
8... Ne7 {[%clk 0:02:58.5]} 9. Bd3 {[%clk 0:02:44.9]} 9... Qc7 {[%clk
0:02:47.6]} 10. O-O {[%clk 0:02:42]} 10... Bxg3 {[%clk 0:02:48]} 11. hxg3 {[%clk
0:02:43.2]} 11... Rb8 {[%clk 0:02:46.5]} 12. Qe2 {[%clk 0:02:44.1]} 12... b5
{[%clk 0:02:45.3]} 13. e4 {[%clk 0:02:37.3]} 13... cxd4 {[%clk 0:02:36.1]} 14.
Nxd4 {[%clk 0:02:21.2]} 14... dxe4 {[%clk 0:02:28.3]} 15. Nxe4 {[%clk
0:02:20.4]} 15... Nxe4 {[%clk 0:02:25]} 16. Qxe4 {[%clk 0:02:21.3]} 16... g6
{[%clk 0:02:09.5]} 17. Nxb5 {[%clk 0:02:20.7]} 17... Qc5 {[%clk 0:02:01.5]} 18.
b4 {[%clk 0:02:17.6]} 18... Qb6 {[%clk 0:02:00.2]} 19. Qd4 {[%clk 0:02:12.6]}
19... Rd8 {[%clk 0:01:46.6]} 20. Qxb6 {[%clk 0:02:10.6]} 20... Rxb6 {[%clk
0:01:48.5]} 21. Bc4 {[%clk 0:01:35.3]} 21... Ba6 {[%clk 0:01:49]} 22. a4 {[%clk
0:01:35.9]} 22... Rc8 {[%clk 0:01:49.2]} 23. Be2 {[%clk 0:01:34.8]} 23... Bxb5
{[%clk 0:01:50.1]} 24. axb5 {[%clk 0:01:34.4]} 24... Rxc3 {[%clk 0:01:49.9]} 25.
Rxa7 {[%clk 0:01:35.5]} 25... Nd5 {[%clk 0:01:51.4]} 26. Rb1 {[%clk 0:01:33.5]}
26... h5 {[%clk 0:01:37.7]} 27. Ra6 {[%clk 0:01:30.6]} 27... Rb8 {[%clk
0:01:38.7]} 28. Rc6 {[%clk 0:01:29.7]} 28... Ra3 {[%clk 0:01:35.1]} 29. Bc4
{[%clk 0:01:03.5]} 29... Nc3 {[%clk 0:01:30.5]} 30. Rc1 {[%clk 0:00:48.6]} 30...
Nxb5 {[%clk 0:01:27.6]} 31. Bxb5 {[%clk 0:00:36.3]} 31... Rxb5 {[%clk
0:01:29.5]} 32. Rb1 {[%clk 0:00:37.6]} 32... Ra4 {[%clk 0:01:27.7]} 33. Rc4
{[%clk 0:00:38]} 33... Kg7 {[%clk 0:01:29]} 34. g4 {[%clk 0:00:38.6]} 34... hxg4
{[%clk 0:01:27.2]} 35. Rxg4 {[%clk 0:00:39.1]} 35... f5 {[%clk 0:01:28.8]} 36.
Rc4 {[%clk 0:00:39.9]} 36... Kf6 {[%clk 0:01:30.7]} 37. g3 {[%clk 0:00:41.1]}
37... g5 {[%clk 0:01:31.8]} 38. Kg2 {[%clk 0:00:42.3]} 38... g4 {[%clk
0:01:32.7]} 39. Rb2 {[%clk 0:00:42.7]} 39... Ke5 {[%clk 0:01:30.3]} 40. Rb3
{[%clk 0:00:37]} 40... Kd5 {[%clk 0:01:31]} 41. Rf4 {[%clk 0:00:33.6]} 41... Ke5
{[%clk 0:01:22.3]} 42. Re3+ {[%clk 0:00:34.5]} 42... Kf6 {[%clk 0:01:23.4]} 43.
Rb3 {[%clk 0:00:36.3]} 43... Ra2 {[%clk 0:01:23.4]} 44. Rc4 {[%clk 0:00:37.4]}
44... e5 {[%clk 0:01:20.4]} 45. Rc6+ {[%clk 0:00:37.5]} 45... Kg5 {[%clk
0:01:21.5]} 46. Rc5 {[%clk 0:00:37.2]} 46... Rxc5 {[%clk 0:01:21.6]} 47. bxc5
{[%clk 0:00:38.8]} 47... Rc2 {[%clk 0:01:23.3]} 48. Rb5 {[%clk 0:00:39.5]} 48...
f4 {[%clk 0:01:23.1]} 49. gxf4+ {[%clk 0:00:40.6]} 49... exf4 {[%clk 0:01:24.6]}
50. Rb8 {[%clk 0:00:32.2]} 50... g3 {[%clk 0:00:58.3]} 51. Kf3 {[%clk
0:00:26.3]} 51... Rxf2+ {[%clk 0:00:58.8]} 52. Ke4 {[%clk 0:00:27.8]} 52... Re2+
{[%clk 0:00:58.3]} 53. Kd3 {[%clk 0:00:29]} 53... Re1 {[%clk 0:00:56.4]} 54. Kd2
{[%clk 0:00:28]} 54... Re5 {[%clk 0:00:57.1]} 55. c6 {[%clk 0:00:26.8]} 55...
Rc5 {[%clk 0:00:57.8]} 56. Rc8 {[%clk 0:00:28.1]} 56... Kg4 {[%clk 0:00:57.4]}
57. c7 {[%clk 0:00:29.3]} 57... Kf3 {[%clk 0:00:58.5]} 0-1

[Event "*** Titled Tuesday 3|2 Blitz"]
[Site "Chess.com"]
[Date "2016.02.02"]
[Round "6"]
[White "spectralsoul"]
[Black "Iball95"]
[Result "1-0"]
[WhiteElo "2557"]
[BlackElo "2393"]
[TimeControl "180+2"]
[EndTime "12:20:13 PST"]
[Termination "spectralsoul won on time"]

1. Nf3 {[%clk 0:03:01.9]} 1... Nf6 {[%clk 0:02:57.9]} 2. c4 {[%clk 0:03:02.7]}
2... c5 {[%clk 0:02:59.1]} 3. d4 {[%clk 0:03:02.7]} 3... cxd4 {[%clk 0:02:58.2]}
4. Nxd4 {[%clk 0:03:04.6]} 4... Nc6 {[%clk 0:02:56.9]} 5. Nc3 {[%clk 0:03:04.9]}
5... g6 {[%clk 0:02:55.6]} 6. e4 {[%clk 0:03:02.2]} 6... d6 {[%clk 0:02:56.1]}
7. Nc2 {[%clk 0:03:02.8]} 7... Bg7 {[%clk 0:02:56.8]} 8. Be2 {[%clk 0:03:04.3]}
8... O-O {[%clk 0:02:58.3]} 9. O-O {[%clk 0:03:05.7]} 9... Nd7 {[%clk
0:02:56.2]} 10. Be3 {[%clk 0:03:04.6]} 10... Nc5 {[%clk 0:02:55.4]} 11. f3
{[%clk 0:03:05.5]} 11... a5 {[%clk 0:02:55.8]} 12. Qd2 {[%clk 0:03:05.4]} 12...
a4 {[%clk 0:02:55.8]} 13. Rad1 {[%clk 0:03:00.1]} 13... f5 {[%clk 0:02:56.8]}
14. exf5 {[%clk 0:03:00.7]} 14... Bxf5 {[%clk 0:02:58.6]} 15. Nd4 {[%clk
0:02:58.9]} 15... Bd7 {[%clk 0:02:57.8]} 16. Rfe1 {[%clk 0:02:52.9]} 16... Qa5
{[%clk 0:02:57.5]} 17. Bf1 {[%clk 0:02:51.1]} 17... Rf7 {[%clk 0:02:47.6]} 18.
Qc2 {[%clk 0:02:32.6]} 18... Nxd4 {[%clk 0:02:14.5]} 19. Bxd4 {[%clk 0:02:33.2]}
19... Bxd4+ {[%clk 0:02:15.9]} 20. Rxd4 {[%clk 0:02:34.9]} 20... Bc6 {[%clk
0:02:17.5]} 21. h4 {[%clk 0:02:25.8]} 21... Nd7 {[%clk 0:02:06.7]} 22. Qd2
{[%clk 0:02:13.9]} 22... Ne5 {[%clk 0:01:52.5]} 23. f4 {[%clk 0:01:29.5]} 23...
Ng4 {[%clk 0:01:40.8]} 24. Be2 {[%clk 0:01:23.9]} 24... Nh6 {[%clk 0:01:41]} 25.
Rd3 {[%clk 0:00:52.9]} 25... Nf5 {[%clk 0:01:26]} 26. h5 {[%clk 0:00:50.7]}
26... Qc5+ {[%clk 0:01:26.5]} 27. Kh2 {[%clk 0:00:51]} 27... gxh5 {[%clk
0:01:10.1]} 28. Bxh5 {[%clk 0:00:46.1]} 28... Rg7 {[%clk 0:01:10.4]} 29. Bf3
{[%clk 0:00:20.4]} 29... Bxf3 {[%clk 0:01:01.1]} 30. Rxf3 {[%clk 0:00:21.8]}
30... Nh4 {[%clk 0:01:00.3]} 31. Rg3 {[%clk 0:00:23]} 31... Rxg3 {[%clk
0:00:36.6]} 32. Kxg3 {[%clk 0:00:24.9]} 32... Nf5+ {[%clk 0:00:38.2]} 33. Kh3
{[%clk 0:00:25.8]} 33... Qxc4 {[%clk 0:00:39]} 34. g4 {[%clk 0:00:24.5]} 34...
Nd4 {[%clk 0:00:36.3]} 35. Rxe7 {[%clk 0:00:22.7]} 35... Qf1+ {[%clk 0:00:36.7]}
36. Qg2 {[%clk 0:00:23.1]} 36... Qxf4 {[%clk 0:00:30.7]} 37. Qd5+ {[%clk
0:00:23.1]} 37... Kh8 {[%clk 0:00:31]} 38. Rf7 {[%clk 0:00:16.7]} 38... Qe3+
{[%clk 0:00:26.8]} 39. Kh4 {[%clk 0:00:18.2]} 39... Rg8 {[%clk 0:00:22.3]} 40.
Ne4 {[%clk 0:00:16]} 40... Qe1+ {[%clk 0:00:16.2]} 41. Kh3 {[%clk 0:00:16.6]}
41... Qe3+ {[%clk 0:00:15.7]} 42. Ng3 {[%clk 0:00:15.1]} 42... Ne6 {[%clk
0:00:09.6]} 43. Kh2 {[%clk 0:00:10.3]} 43... Ng5 {[%clk 0:00:07.9]} 44. Rf5
{[%clk 0:00:09.6]} 44... Ne6 {[%clk 0:00:04.9]} 45. Qxd6 {[%clk 0:00:09.8]}
45... Qh6+ {[%clk 0:00:04.7]} 46. Nh5 {[%clk 0:00:09.6]} 1-0

[Event "*** Titled Tuesday 3|2 Blitz"]
[Site "Chess.com"]
[Date "2016.02.02"]
[Round "6"]
[White "Makalexa"]
[Black "VMikhalevski"]
[Result "1-0"]
[WhiteElo "2103"]
[BlackElo "2430"]
[TimeControl "180+2"]
[EndTime "12:20:15 PST"]
[Termination "Makalexa won by resignation"]

1. e4 {[%clk 0:02:50]} 1... e5 {[%clk 0:02:58.7]} 2. Nf3 {[%clk 0:02:50.6]} 2...
Nc6 {[%clk 0:02:58.7]} 3. Bb5 {[%clk 0:02:50.4]} 3... a6 {[%clk 0:02:58.3]} 4.
Ba4 {[%clk 0:02:50.9]} 4... Nf6 {[%clk 0:02:59.7]} 5. O-O {[%clk 0:02:51.2]}
5... Nxe4 {[%clk 0:03:01.3]} 6. d4 {[%clk 0:02:34.1]} 6... b5 {[%clk 0:03:02.8]}
7. Bb3 {[%clk 0:02:34.8]} 7... d5 {[%clk 0:03:04.3]} 8. dxe5 {[%clk 0:02:35]}
8... Be6 {[%clk 0:03:05.7]} 9. Nbd2 {[%clk 0:02:24.9]} 9... Nc5 {[%clk
0:03:06.7]} 10. c3 {[%clk 0:02:22.7]} 10... Be7 {[%clk 0:03:06.5]} 11. Bc2
{[%clk 0:02:21.7]} 11... Bg4 {[%clk 0:03:06.9]} 12. h3 {[%clk 0:02:19]} 12...
Bh5 {[%clk 0:03:07.4]} 13. Re1 {[%clk 0:02:15.6]} 13... O-O {[%clk 0:02:59.8]}
14. Nf1 {[%clk 0:02:16.4]} 14... d4 {[%clk 0:02:58.5]} 15. cxd4 {[%clk
0:02:08.7]} 15... Bxf3 {[%clk 0:02:56]} 16. Qxf3 {[%clk 0:02:09.6]} 16... Nxd4
{[%clk 0:02:56.3]} 17. Qd1 {[%clk 0:02:10.5]} 17... Nxc2 {[%clk 0:02:56.4]} 18.
Qxc2 {[%clk 0:02:11.7]} 18... Qd3 {[%clk 0:02:56.8]} 19. Qe2 {[%clk 0:01:56]}
19... Rad8 {[%clk 0:02:47]} 20. Be3 {[%clk 0:01:50.2]} 20... Na4 {[%clk
0:02:41.6]} 21. Rab1 {[%clk 0:01:39.6]} 21... Qxe2 {[%clk 0:02:37.7]} 22. Rxe2
{[%clk 0:01:40.1]} 22... c5 {[%clk 0:02:38.9]} 23. Rc2 {[%clk 0:01:37.1]} 23...
Rd5 {[%clk 0:02:30.3]} 24. f4 {[%clk 0:01:31.7]} 24... g5 {[%clk 0:02:19.4]} 25.
b3 {[%clk 0:01:30.3]} 25... Nb6 {[%clk 0:02:14]} 26. Nd2 {[%clk 0:01:15.8]}
26... Rd3 {[%clk 0:02:01.3]} 27. Kf2 {[%clk 0:01:11.5]} 27... Nd5 {[%clk
0:01:59.2]} 28. Nf1 {[%clk 0:00:35.7]} 28... Nxe3 {[%clk 0:01:37.1]} 29. Nxe3
{[%clk 0:00:35.9]} 29... gxf4 {[%clk 0:01:36.9]} 30. Nf5 {[%clk 0:00:36.8]}
30... Bd8 {[%clk 0:01:36.9]} 31. Rxc5 {[%clk 0:00:36.5]} 31... Bb6 {[%clk
0:01:37.1]} 32. Ke2 {[%clk 0:00:34.7]} 32... Rfd8 {[%clk 0:01:31.1]} 33. Rc2
{[%clk 0:00:34.8]} 33... Re8 {[%clk 0:01:25.5]} 34. Kxd3 {[%clk 0:00:33.2]}
34... h5 {[%clk 0:01:23.7]} 35. Re1 {[%clk 0:00:31.6]} 35... Kh7 {[%clk
0:01:20.5]} 36. Nd6 {[%clk 0:00:31.5]} 36... Re7 {[%clk 0:01:21.5]} 37. Rc8
{[%clk 0:00:29.2]} 37... Ba5 {[%clk 0:01:18.5]} 38. Re4 {[%clk 0:00:28.5]} 38...
Kg6 {[%clk 0:01:16.3]} 39. Rg8+ {[%clk 0:00:27.9]} 39... Kh7 {[%clk 0:01:16.6]}
40. Rf8 {[%clk 0:00:28.7]} 40... Kg7 {[%clk 0:01:17]} 41. Ra8 {[%clk 0:00:23]}
41... Rd7 {[%clk 0:01:09.2]} 42. Rxa6 {[%clk 0:00:22.5]} 42... Bd8 {[%clk
0:01:08.6]} 43. Rxf4 {[%clk 0:00:22.3]} 43... f6 {[%clk 0:01:08.1]} 44. Ke4
{[%clk 0:00:21.2]} 44... fxe5 {[%clk 0:01:04.9]} 45. Rf7+ {[%clk 0:00:22.1]}
45... Rxf7 {[%clk 0:01:05]} 46. Nxf7 {[%clk 0:00:24]} 46... Kxf7 {[%clk
0:01:06]} 47. Kxe5 {[%clk 0:00:25.3]} 47... h4 {[%clk 0:00:55.8]} 48. Kf5 {[%clk
0:00:25.9]} 48... b4 {[%clk 0:00:44.8]} 49. Ra7+ {[%clk 0:00:26.1]} 49... Ke8
{[%clk 0:00:43]} 50. Rb7 {[%clk 0:00:27]} 50... Ba5 {[%clk 0:00:39.1]} 51. Rb5
{[%clk 0:00:26.8]} 51... Bc7 {[%clk 0:00:38]} 52. Ke6 {[%clk 0:00:27.2]} 52...
Bg3 {[%clk 0:00:34.9]} 53. Rxb4 {[%clk 0:00:25.4]} 53... Kd8 {[%clk 0:00:35.2]}
54. Rc4 {[%clk 0:00:24.8]} 54... Bf2 {[%clk 0:00:34.5]} 55. a4 {[%clk
0:00:25.1]} 55... Be1 {[%clk 0:00:35.5]} 56. b4 {[%clk 0:00:25.4]} 1-0